fUSD/lending_fUSD_20240427
["ID","MTS","AMOUNT","RATE_DAILY","PERIOD"]
[323737913,1714225266257,-350.0,0.00049315,30]
[323737914,1714225266282,-350.0,0.00049315,30]
[323737915,1714225266305,-350.0,0.00049315,30]
[323737916,1714225266329,-350.0,0.00049315,30]
[323737917,1714225266355,-346.0,0.00049315,30]
[323737918,1714225266380,-510.0,0.00049315,120]
[323737919,1714225266407,-1024.49,0.00049315,60]
[323737920,1714225266892,225.02784077,0.00037992,30]
[323737921,1714225266968,150.0,0.00049315,30]
[323737923,1714225267865,2000.0,0.00045,30]
[323737926,1714225269371,4500.0,0.000488,120]
[323737928,1714225272256,500.0,0.00041096,30]
[323737929,1714225272770,500.0,0.00041712,30]
[323737931,1714225273274,500.0,0.00042338,30]
[323737932,1714225273829,500.0,0.00042973,30]
[323737933,1714225274313,500.0,0.00043618,30]
[323737934,1714225274429,980.12288646,0.0004,100]
[323737935,1714225274850,500.0,0.00044272,30]
[323737936,1714225275354,500.0,0.00044936,30]
[323737937,1714225275624,546.04384775,0.00045,120]
[323737938,1714225275926,388.95930376,0.0004561,30]
[323737952,1714225541366,194.42,8.219e-05,2]
[323738028,1714225678245,346.54,8.501e-05,2]
[323738029,1714225708741,255.74586642,8.501e-05,2]
[323738058,1714225832280,-2216.45947127,9.065e-05,2]
[323738059,1714225832289,-2180.57537937,9.065e-05,2]
[323738060,1714225832298,-216.13758338,9.066e-05,2]
[323738061,1714225832309,-119.90038592,9.066e-05,2]
[323738062,1714225832341,-941.30422815,9.066e-05,2]
[323738063,1714225832350,-250.0,9.067e-05,2]
[323738064,1714225832360,-166.12,9.109e-05,2]
[323738065,1714225832370,-684.46532829,9.374e-05,2]
[323738066,1714225832379,-164.58070269,9.375e-05,2]
[323738067,1714225832388,-279.65,9.376e-05,2]
[323738068,1714225832398,-23361.85188938,9.396e-05,2]
[323738069,1714225832407,-4333.98132409,9.397e-05,2]
[323738070,1714225832417,-200.0,9.402e-05,2]
[323738071,1714225832427,-271.84,9.402e-05,2]
[323738072,1714225832437,-150.0,9.472e-05,2]
[323738073,1714225832446,-664.85,9.481e-05,2]
[323738074,1714225832455,-31542.35652743,9.558e-05,2]
[323738075,1714225832469,-6960.0,9.558e-05,2]
[323738076,1714225832489,-6771.4,9.558e-05,2]
[323738077,1714225832501,-538.88,9.558e-05,2]
[323738078,1714225832513,-3655.23039409,9.558e-05,2]
[323738079,1714225832524,-1053.58233075,9.558e-05,2]
[323738080,1714225832537,-707.64498718,9.558e-05,2]
[323738081,1714225832557,-778.63384695,9.558e-05,2]
[323738082,1714225832569,-56138.5238936,9.558e-05,2]
[323738083,1714225832578,-141917.290734,9.558e-05,2]
[323738084,1714225832587,-160.8,9.562e-05,2]
[323738085,1714225832596,-252.63,9.611e-05,2]
[323738086,1714225832606,-716.94,9.659e-05,2]
[323738087,1714225832615,-499.99,9.67e-05,2]
[323738088,1714225832625,-163.98,9.868e-05,2]
[323738089,1714225832634,-174.75,0.00010178,2]
[323738090,1714225832643,-205.89797358,0.00010187,2]
[323738091,1714225832653,-24435.74378335,0.00010197,2]
[323738092,1714225832662,-151.04,0.00010198,2]
[323738093,1714225832671,-151.04,0.00010211,2]
[323738094,1714225832680,-151.04,0.00010224,2]
[323738095,1714225832689,-151.04,0.00010237,2]
[323738096,1714225832698,-151.04,0.00010249,2]
[323738097,1714225832707,-400.0,0.000103,3]
[323738098,1714225832716,-800.0,0.000104,3]
[323738099,1714225832725,-180.0,0.00010419,2]
[323738100,1714225832735,-194.42,0.0001045,2]
[323738101,1714225832744,-1300.0,0.000105,3]
[323738102,1714225832756,-1700.0,0.000106,3]
[323738103,1714225832765,-567.78,0.0001063,10]
[323738105,1714225832775,-150.0,0.00010652,2]
[323738107,1714225832784,-150.0,0.00010652,2]
[323738109,1714225832794,-150.0,0.00010652,2]
[323738111,1714225832803,-2200.0,0.000107,3]
[323738113,1714225832813,-300.0,0.00010704,2]
[323738115,1714225832822,-4898.0,0.00010738,2]
[323738117,1714225832831,-1496.7777,0.000108,2]
[323738119,1714225832841,-2326.8942,0.000108,2]
[323738121,1714225832850,-500.0,0.000108,2]
[323738123,1714225832859,-400.0,0.000108,3]
[323738125,1714225832868,-716.94,0.00010867,2]
[323738127,1714225832877,-155.0,0.000109,2]
[323738129,1714225832887,-400.0,0.000109,3]
[323738131,1714225832895,-500.0,0.00010958,2]
[323738133,1714225832905,-500.0,0.00010958,2]
[323738135,1714225832914,-500.0,0.00010958,2]
[323738137,1714225832923,-500.0,0.00010958,2]
[323738139,1714225832932,-500.0,0.00010958,2]
[323738141,1714225832942,-500.0,0.00010958,2]
[323738143,1714225832952,-500.0,0.00010958,2]
[323738144,1714225832962,-500.0,0.00010958,2]
[323738145,1714225832971,-196.47,0.00010958,2]
[323738146,1714225832981,-500.0,0.00010958,2]
[323738149,1714225832990,-340.0,0.00010958,2]
[323738150,1714225832999,-500.0,0.00010958,2]
[323738152,1714225833008,-500.0,0.00010958,2]
[323738154,1714225833017,-500.0,0.00010958,2]
[323738156,1714225833026,-500.0,0.00010958,2]
[323738158,1714225833035,-500.0,0.00010958,2]
[323738160,1714225833044,-557.68586413,0.00010958,2]
[323738162,1714225833054,-500.0,0.00010958,2]
[323738164,1714225833062,-500.0,0.00010958,2]
[323738166,1714225833071,-500.0,0.00010958,2]
[323738168,1714225833080,-500.0,0.00010958,2]
[323738170,1714225833090,-500.0,0.00010958,2]
[323738172,1714225833098,-500.0,0.00010958,2]
[323738174,1714225833107,-500.0,0.00010958,2]
[323738176,1714225833117,-500.0,0.00010958,2]
[323738178,1714225833126,-500.0,0.00010958,2]
[323738180,1714225833135,-446.4799413,0.00010958,2]
[323738182,1714225833144,-500.0,0.00010958,2]
[323738184,1714225833153,-504.19337801,0.00010958,2]
[323738186,1714225833163,-500.0,0.00010958,2]
[323738188,1714225833172,-500.0,0.00010958,2]
[323738190,1714225833181,-500.0,0.00010958,2]
[323738192,1714225833191,-500.0,0.00010958,2]
[323738194,1714225833200,-500.0,0.00010958,2]
[323738196,1714225833210,-578.5,0.00010958,2]
[323738198,1714225833219,-500.0,0.00010958,2]
[323738200,1714225833229,-500.0,0.00010958,2]
[323738202,1714225833240,-500.0,0.00010958,2]
[323738204,1714225833249,-500.0,0.00010958,2]
[323738206,1714225833258,-500.0,0.00010958,2]
[323738208,1714225833267,-500.0,0.00010958,2]
[323738210,1714225833277,-500.0,0.00010958,2]
[323738211,1714225833286,-500.0,0.00010958,2]
[323738213,1714225833295,-500.0,0.00010958,2]
[323738214,1714225833305,-500.0,0.00010958,2]
[323738216,1714225833315,-500.0,0.00010958,2]
[323738218,1714225833325,-500.0,0.00010958,2]
[323738219,1714225833334,-500.0,0.00010958,2]
[323738221,1714225833343,-500.0,0.00010958,2]
[323738222,1714225833352,-500.0,0.00010958,2]
[323738224,1714225833361,-500.0,0.00010958,2]
[323738225,1714225833370,-177.23236136,0.00010958,2]
[323738227,1714225833380,-500.0,0.00010958,2]
[323738228,1714225833389,-500.0,0.00010958,2]
[323738230,1714225833399,-500.0,0.00010958,2]
[323738231,1714225833408,-500.0,0.00010958,2]
[323738233,1714225833418,-500.0,0.00010958,2]
[323738235,1714225833427,-500.0,0.00010958,2]
[323738236,1714225833437,-502.62921034,0.00010958,2]
[323738238,1714225833446,-500.0,0.00010958,2]
[323738239,1714225833455,-500.0,0.00010958,2]
[323738241,1714225833464,-500.0,0.00010958,2]
[323738242,1714225833474,-500.0,0.00010958,2]
[323738244,1714225833483,-601.63973723,0.00010958,2]
[323738245,1714225833492,-500.0,0.00010958,2]
[323738247,1714225833501,-552.40618132,0.00010958,2]
[323738248,1714225833510,-500.0,0.00010958,2]
[323738250,1714225833520,-1582.98,0.00010958,2]
[323738252,1714225833529,-500.0,0.00010958,2]
[323738253,1714225833538,-500.0,0.00010958,2]
[323738255,1714225833547,-500.0,0.00010958,2]
[323738257,1714225833558,-500.0,0.00010958,2]
[323738258,1714225833567,-500.0,0.00010958,2]
[323738260,1714225833576,-500.0,0.00010958,2]
[323738262,1714225833585,-500.0,0.00010958,2]
[323738263,1714225833594,-500.0,0.00010958,2]
[323738265,1714225833603,-500.0,0.00010958,2]
[323738267,1714225833612,-500.0,0.00010958,2]
[323738268,1714225833621,-500.0,0.00010958,2]
[323738270,1714225833630,-500.0,0.00010958,2]
[323738271,1714225833639,-500.0,0.00010958,2]
[323738273,1714225833649,-478.49656141,0.00010958,2]
[323738275,1714225833659,-500.0,0.00010958,2]
[323738276,1714225833668,-500.0,0.00010958,2]
[323738278,1714225833678,-500.0,0.00010958,2]
[323738280,1714225833688,-500.0,0.00010958,2]
[323738281,1714225833697,-500.0,0.00010958,2]
[323738283,1714225833706,-500.0,0.00010958,2]
[323738285,1714225833716,-210.65968199,0.00010958,2]
[323738286,1714225833725,-500.0,0.00010958,2]
[323738288,1714225833734,-500.0,0.00010958,2]
[323738289,1714225833743,-500.0,0.00010958,2]
[323738291,1714225833752,-529.49,0.00010958,2]
[323738292,1714225833761,-500.0,0.00010958,2]
[323738293,1714225833770,-500.0,0.00010958,2]
[323738294,1714225833780,-500.0,0.00010958,2]
[323738295,1714225833789,-500.0,0.00010958,2]
[323738296,1714225833798,-497.40707885,0.00010958,2]
[323738297,1714225833808,-605.25259243,0.00010958,2]
[323738298,1714225833817,-25.51472108,0.00010958,2]
[323738299,1714225833832,-474.48527892,0.00010958,2]
[323738300,1714225833841,-500.0,0.00010958,2]
[323738301,1714225833850,-500.0,0.00010958,2]
[323738302,1714225833860,-500.0,0.00010958,2]
[323738303,1714225833869,-500.0,0.00010958,2]
[323738304,1714225833878,-500.0,0.00010958,2]
[323738305,1714225833887,-503.33194777,0.00010958,2]
[323738306,1714225833896,-215.62,0.00010958,2]
[323738307,1714225833906,-500.0,0.00010958,2]
[323738308,1714225833916,-500.0,0.00010958,2]
[323738309,1714225833925,-500.0,0.00010958,2]
[323738310,1714225833935,-4.17427451,0.00010958,2]
[323738311,1714225833951,-495.82572549,0.00010958,2]
[323738312,1714225833961,-500.0,0.00010958,2]
[323738313,1714225833971,-306.07720984,0.00010958,2]
[323738314,1714225833982,-193.92279016,0.00010958,2]
[323738315,1714225833991,-339.81035631,0.00010958,2]
[323738316,1714225834002,-160.18964369,0.00010958,2]
[323738317,1714225834011,-500.0,0.00010958,2]
[323738318,1714225834021,-500.0,0.00010958,2]
[323738319,1714225834030,-131.71785841,0.00010958,2]
[323738320,1714225834043,-368.28214159,0.00010958,2]
[323738321,1714225834052,-500.0,0.00010958,2]
[323738322,1714225834062,-393.62321514,0.00010958,2]
[323738323,1714225834074,-106.37678486,0.00010958,2]
[323738324,1714225834084,-500.0,0.00010958,2]
[323738325,1714225834093,-500.0,0.00010958,2]
[323738326,1714225834103,-1476.75,0.00010958,2]
[323738327,1714225834112,-500.0,0.00010958,2]
[323738328,1714225834122,-608.26,0.00010958,2]
[323738329,1714225834131,-500.0,0.00010958,2]
[323738330,1714225834141,-500.0,0.00010958,2]
[323738331,1714225834150,-500.0,0.00010958,2]
[323738332,1714225834160,-500.0,0.00010958,2]
[323738333,1714225834169,-500.0,0.00010958,2]
[323738334,1714225834179,-500.0,0.00010958,2]
[323738335,1714225834188,-500.0,0.00010958,2]
[323738336,1714225834197,-500.0,0.00010958,2]
[323738337,1714225834207,-500.0,0.00010958,2]
[323738338,1714225834216,-500.0,0.00010958,2]
[323738339,1714225834225,-90.49145881,0.00010958,2]
[323738340,1714225834241,-409.50854119,0.00010958,2]
[323738341,1714225834251,-479.00036287,0.00010958,2]
[323738342,1714225834264,-20.99963713,0.00010958,2]
[323738343,1714225834274,-500.0,0.00010958,2]
[323738344,1714225834284,-500.0,0.00010958,2]
[323738345,1714225834293,-500.0,0.00010958,2]
[323738346,1714225834303,-390.41928508,0.00010958,2]
[323738347,1714225834316,-500.0,0.00010958,2]
[323738348,1714225834326,-500.0,0.00010958,2]
[323738349,1714225834335,-281.91987218,0.00010958,2]
[323738350,1714225834354,-218.08012782,0.00010958,2]
[323738351,1714225834363,-500.0,0.00010958,2]
[323738352,1714225834373,-405.71917346,0.00010958,2]
[323738353,1714225834383,-275.8949102,0.00010958,2]
[323738354,1714225834393,-500.0,0.00010958,2]
[323738355,1714225834404,-500.0,0.00010958,2]
[323738356,1714225834413,-500.0,0.00010958,2]
[323738357,1714225834423,-500.0,0.00010958,2]
[323738358,1714225834434,-500.0,0.00010958,2]
[323738359,1714225834443,-500.0,0.00010958,2]
[323738360,1714225834453,-500.0,0.00010958,2]
[323738361,1714225834462,-500.0,0.00010958,2]
[323738362,1714225834472,-500.0,0.00010958,2]
[323738363,1714225834482,-500.0,0.00010958,2]
[323738364,1714225834491,-500.0,0.00010958,2]
[323738365,1714225834500,-503.8894423,0.00010958,2]
[323738366,1714225834510,-1094.99,0.00010958,2]
[323738367,1714225834519,-500.0,0.00010958,2]
[323738368,1714225834528,-500.0,0.00010958,2]
[323738369,1714225834538,-551.19,0.00010958,2]
[323738370,1714225834547,-500.0,0.00010958,2]
[323738371,1714225834559,-738.72,0.00010958,2]
[323738372,1714225834569,-500.0,0.00010958,2]
[323738373,1714225834579,-500.0,0.00010958,2]
[323738374,1714225834589,-500.0,0.00010958,2]
[323738375,1714225834598,-1654.9,0.00010958,2]
[323738376,1714225834607,-500.0,0.00010958,2]
[323738377,1714225834617,-111.08308752,0.00010958,2]
[323738378,1714225834629,-388.91691248,0.00010958,2]
[323738379,1714225834639,-359.50310752,0.00010958,2]
[323738380,1714225834650,-173.54689248,0.00010958,2]
[323738381,1714225834659,-500.0,0.00010958,2]
[323738382,1714225834668,-18.16717859,0.00010958,2]
[323738390,1714225837997,-290.29000002,9.064e-05,2]
[323738401,1714225838159,-15.16205434,9.064e-05,2]
[323738402,1714225838169,-481.83282141,0.00010958,2]
[323738403,1714225838178,-500.0,0.00010958,2]
[323738404,1714225838188,-500.0,0.00010958,2]
[323738405,1714225838198,-500.0,0.00010958,2]
[323738406,1714225838208,-2673.44,0.00010958,2]
[323738407,1714225838217,-500.0,0.00010958,2]
[323738408,1714225838229,-500.0,0.00010958,2]
[323738409,1714225838240,-500.0,0.00010958,2]
[323738410,1714225838251,-500.0,0.00010958,2]
[323738411,1714225838260,-508.76,0.00010958,2]
[323738412,1714225838270,-500.0,0.00010958,2]
[323738413,1714225838279,-3168.53,0.00010958,2]
[323738414,1714225838289,-500.0,0.00010958,2]
[323738415,1714225838298,-500.0,0.00010958,2]
[323738416,1714225838313,-500.0,0.00010958,2]
[323738417,1714225838322,-677.66,0.00010958,2]
[323738418,1714225838331,-3152.65,0.00010958,2]
[323738419,1714225838340,-973.97,0.00010958,2]
[323738420,1714225838349,-1077.28,0.00010958,2]
[323738421,1714225838359,-500.0,0.00010958,2]
[323738422,1714225838368,-500.0,0.00010958,2]
[323738423,1714225838378,-2597.62,0.00010958,2]
[323738424,1714225838388,-500.0,0.00010958,2]
[323738425,1714225838398,-500.0,0.00010958,2]
[323738426,1714225838408,-500.0,0.00010958,2]
[323738427,1714225838418,-202.8,0.00010958,2]
[323738428,1714225838427,-500.0,0.00010958,2]
[323738429,1714225838436,-500.0,0.00010958,2]
[323738431,1714225838445,-500.0,0.00010958,2]
[323738433,1714225838455,-500.0,0.00010958,2]
[323738434,1714225838464,-500.0,0.00010958,2]
[323738435,1714225838473,-500.0,0.00010958,2]
[323738436,1714225838483,-500.0,0.00010958,2]
[323738437,1714225838492,-500.0,0.00010958,2]
[323738438,1714225838502,-10890.06,0.00010958,2]
[323738439,1714225838512,-500.0,0.00010958,2]
[323738440,1714225838521,-252.488372,0.00010958,2]
[323738441,1714225838531,-500.0,0.00010958,2]
[323738442,1714225838541,-500.0,0.00010958,2]
[323738443,1714225838551,-500.0,0.00010958,2]
[323738444,1714225838560,-1315.52,0.00010958,2]
[323738445,1714225838571,-198.06675225,0.00010964,2]
[323738446,1714225838821,-12341.19430871,0.00010964,2]
[323738447,1714225838830,-661.38520626,0.00010964,2]
[323738448,1714225838840,-174.76409425,0.00010964,2]
[323738449,1714225838849,-2750.0,0.00011,3]
[323738450,1714225838859,-856459.97930565,0.00011,2]
[323738451,1714225838870,-382227.4788007,0.00011,2]
[323738452,1714225838882,-340.21447408,0.00011,2]
[323738453,1714225838894,-772.76481492,0.00011,2]
[323738454,1714225838905,-194692.35859916,0.00011,2]
[323738455,1714225838930,-17137.04296678,0.00011,2]
[323738456,1714225838942,-12603.56249998,0.00011,2]
[323738457,1714225838954,-5625.96,0.00011,2]
[323738458,1714225838966,-907.87201028,0.00011,2]
[323738459,1714225838977,-630.32,0.00011,2]
[323738460,1714225840023,-500.0,0.00010958,2]
[323738461,1714225840033,-2665.71758024,0.00011,2]
[323738462,1714225840047,-474.40365736,0.00011,2]
[323738463,1714225840079,-3049.76858233,0.00011,2]
[323738464,1714225840187,-300.0,0.00011,2]
[323738465,1714225840242,-1055.47527817,0.00011,2]
[323738466,1714225840297,-1500.0,0.00011,2]
[323738467,1714225840311,-191613.15170389,0.00011,2]
[323738468,1714225840320,-213.70058911,0.00011,2]
[323738469,1714225840329,-213.70058911,0.00011,2]
[323738470,1714225840339,-582.18671226,0.00011064,2]
[323738471,1714225840349,-1000.0,0.00011066,2]
[323738472,1714225840358,-500.0,0.00011066,2]
[323738473,1714225840367,-500.0,0.00011076,2]
[323738474,1714225840376,-500.0,0.00011076,2]
[323738475,1714225840385,-500.0,0.00011076,2]
[323738476,1714225840393,-500.0,0.00011076,2]
[323738477,1714225840403,-500.0,0.00011076,2]
[323738478,1714225840412,-500.0,0.00011076,2]
[323738479,1714225840421,-205.59822143,0.00011076,2]
[323738480,1714225840430,-500.0,0.00011076,2]
[323738481,1714225840438,-500.0,0.00011076,2]
[323738482,1714225840447,-500.0,0.00011076,2]
[323738483,1714225840457,-500.0,0.00011076,2]
[323738484,1714225840466,-500.0,0.00011076,2]
[323738485,1714225840475,-611.50097945,0.00011076,2]
[323738486,1714225840485,-500.0,0.00011076,2]
[323738487,1714225840494,-500.0,0.00011076,2]
[323738488,1714225840503,-500.0,0.00011076,2]
[323738489,1714225840512,-500.0,0.00011076,2]
[323738490,1714225840521,-500.0,0.00011076,2]
[323738491,1714225840530,-500.0,0.00011076,2]
[323738492,1714225840539,-500.0,0.00011076,2]
[323738493,1714225840548,-500.0,0.00011076,2]
[323738494,1714225840559,-406.92279072,0.00011076,2]
[323738496,1714225840568,-622.91,0.00011076,2]
[323738498,1714225840577,-500.0,0.00011076,2]
[323738499,1714225840586,-500.0,0.00011076,2]
[323738501,1714225840596,-830.22,0.00011076,2]
[323738502,1714225840606,-500.0,0.00011076,2]
[323738503,1714225840615,-945.52,0.00011076,2]
[323738504,1714225840625,-500.0,0.00011076,2]
[323738505,1714225840635,-500.0,0.00011076,2]
[323738506,1714225840645,-500.0,0.00011076,2]
[323738507,1714225840656,-529.89,0.00011076,2]
[323738508,1714225840667,-1374.18,0.00011076,2]
[323738509,1714225840677,-500.0,0.00011076,2]
[323738510,1714225840686,-500.0,0.00011076,2]
[323738511,1714225840696,-500.0,0.00011076,2]
[323738512,1714225840705,-500.0,0.00011076,2]
[323738513,1714225840715,-500.0,0.00011076,2]
[323738514,1714225840725,-883.41,0.00011076,2]
[323738515,1714225840734,-500.0,0.00011076,2]
[323738516,1714225840744,-500.0,0.00011076,2]
[323738517,1714225840754,-500.0,0.00011076,2]
[323738518,1714225840764,-500.0,0.00011076,2]
[323738519,1714225840774,-500.0,0.00011076,2]
[323738520,1714225840783,-487.20845585,0.00011076,2]
[323738521,1714225840793,-500.0,0.00011076,2]
[323738522,1714225840803,-1072.78,0.00011076,2]
[323738523,1714225840814,-500.0,0.00011076,2]
[323738524,1714225840823,-500.0,0.00011076,2]
[323738525,1714225840833,-2254.35,0.00011076,2]
[323738526,1714225840842,-500.0,0.00011076,2]
[323738527,1714225840852,-500.0,0.00011076,2]
[323738528,1714225840861,-500.0,0.00011076,2]
[323738529,1714225840871,-771.45,0.00011076,2]
[323738530,1714225840881,-500.0,0.00011076,2]
[323738531,1714225840890,-500.0,0.00011076,2]
[323738532,1714225840899,-500.0,0.00011076,2]
[323738533,1714225840909,-500.0,0.00011076,2]
[323738534,1714225840918,-500.0,0.00011076,2]
[323738535,1714225840928,-500.0,0.00011076,2]
[323738536,1714225840938,-923.08,0.00011076,2]
[323738537,1714225840947,-500.0,0.00011076,2]
[323738538,1714225840957,-500.0,0.00011076,2]
[323738539,1714225840966,-500.0,0.00011076,2]
[323738540,1714225840976,-500.0,0.00011076,2]
[323738541,1714225840986,-222.94,0.00011076,2]
[323738542,1714225840996,-1207.66,0.00011076,2]
[323738543,1714225841006,-500.0,0.00011076,2]
[323738544,1714225841016,-500.0,0.00011076,2]
[323738545,1714225841027,-500.0,0.00011076,2]
[323738546,1714225841037,-500.0,0.00011076,2]
[323738547,1714225841047,-500.0,0.00011076,2]
[323738548,1714225841059,-500.0,0.00011076,2]
[323738549,1714225841070,-500.0,0.00011076,2]
[323738550,1714225841080,-278.69621335,0.00011076,2]
[323738551,1714225841090,-500.0,0.00011076,2]
[323738552,1714225841101,-500.0,0.00011076,2]
[323738553,1714225841111,-707.65,0.00011076,2]
[323738554,1714225841122,-500.0,0.00011076,2]
[323738555,1714225841132,-500.0,0.00011076,2]
[323738556,1714225841143,-1169.75,0.00011076,2]
[323738557,1714225841154,-500.0,0.00011076,2]
[323738558,1714225841165,-1188.11,0.00011076,2]
[323738559,1714225841175,-1122.74,0.00011076,2]
[323738560,1714225841185,-500.0,0.00011076,2]
[323738561,1714225841195,-500.0,0.00011076,2]
[323738562,1714225841206,-927.14,0.00011076,2]
[323738563,1714225841216,-3802.94,0.00011076,2]
[323738564,1714225841226,-500.0,0.00011076,2]
[323738565,1714225841238,-500.0,0.00011076,2]
[323738566,1714225841248,-500.0,0.00011076,2]
[323738567,1714225841258,-904.35,0.00011076,2]
[323738568,1714225841269,-500.0,0.00011076,2]
[323738569,1714225841279,-500.0,0.00011076,2]
[323738570,1714225841290,-500.0,0.00011076,2]
[323738571,1714225841299,-10000.0,0.00011077,2]
[323738572,1714225841313,-177.06517047,0.00011078,2]
[323738573,1714225841323,-496.99987338,0.00011078,2]
[323738574,1714225841334,-208.08889955,0.00011078,2]
[323738575,1714225841344,-419.3,0.00011099,2]
[323738576,1714225841353,-267.94999999,0.0001111,2]
[323738577,1714225841362,-10000.0,0.00011111,2]
[323738578,1714225841371,-8865.75035701,0.00011111,2]
[323738579,1714225841381,-10000.0,0.00011112,2]
[323738580,1714225841390,-183.0,0.0001112,2]
[323738581,1714225841399,-500.0,0.00011131,2]
[323738582,1714225841408,-500.0,0.00011131,2]
[323738583,1714225841417,-500.0,0.00011131,2]
[323738584,1714225841426,-3613.2755616,0.00011132,2]
[323738585,1714225841436,-305.38789119,0.00011132,2]
[323738586,1714225841445,-546.22445098,0.00011132,2]
[323738587,1714225841454,-2252.17846306,0.00011132,2]
[323738588,1714225841463,-2281.85495,0.00011132,2]
[323738589,1714225841472,-12539.26106096,0.0001114,2]
[323738590,1714225841481,-500.0,0.00011162,2]
[323738591,1714225841490,-500.0,0.00011162,2]
[323738592,1714225841498,-500.0,0.00011162,2]
[323738593,1714225841507,-500.0,0.00011162,2]
[323738594,1714225841516,-500.0,0.00011162,2]
[323738595,1714225841526,-500.0,0.00011162,2]
[323738596,1714225841536,-500.0,0.00011162,2]
[323738597,1714225841549,-500.0,0.00011162,2]
[323738598,1714225841566,-190.48,0.00011162,2]
[323738599,1714225841577,-500.0,0.00011162,2]
[323738600,1714225841587,-500.0,0.00011162,2]
[323738601,1714225841597,-500.0,0.00011162,2]
[323738602,1714225841607,-500.0,0.00011162,2]
[323738603,1714225841618,-500.0,0.00011162,2]
[323738604,1714225841629,-500.0,0.00011162,2]
[323738605,1714225841639,-500.0,0.00011162,2]
[323738606,1714225841650,-500.0,0.00011162,2]
[323738607,1714225841660,-500.0,0.00011162,2]
[323738608,1714225841671,-436.85469794,0.00011162,2]
[323738609,1714225841682,-885.16,0.00011162,2]
[323738610,1714225841691,-500.0,0.00011162,2]
[323738611,1714225841701,-500.0,0.00011162,2]
[323738612,1714225841710,-500.0,0.00011162,2]
[323738613,1714225841719,-500.0,0.00011162,2]
[323738614,1714225841729,-500.0,0.00011162,2]
[323738615,1714225841738,-474.17626711,0.00011162,2]
[323738616,1714225841748,-552.85,0.00011162,2]
[323738617,1714225841757,-533.75,0.00011162,2]
[323738618,1714225841767,-500.0,0.00011162,2]
[323738619,1714225841776,-500.0,0.00011162,2]
[323738620,1714225841785,-150.0,0.00011162,2]
[323738621,1714225841794,-500.0,0.00011162,2]
[323738622,1714225841804,-500.0,0.00011162,2]
[323738623,1714225841814,-500.0,0.00011162,2]
[323738624,1714225841823,-500.0,0.00011162,2]
[323738625,1714225841832,-500.0,0.00011162,2]
[323738626,1714225841842,-500.0,0.00011162,2]
[323738627,1714225841851,-500.0,0.00011162,2]
[323738628,1714225841860,-500.0,0.00011162,2]
[323738629,1714225841869,-500.0,0.00011162,2]
[323738630,1714225841878,-500.0,0.00011162,2]
[323738631,1714225841887,-597.17,0.00011162,2]
[323738632,1714225841897,-349.18500341,0.00011162,2]
[323738633,1714225841906,-500.0,0.00011162,2]
[323738634,1714225841916,-500.0,0.00011162,2]
[323738635,1714225841925,-331.45182179,0.00011162,2]
[323738636,1714225841934,-500.0,0.00011162,2]
[323738637,1714225841943,-6741.19,0.00011162,2]